fUSD/lending_fUSD_20241221
["ID","MTS","AMOUNT","RATE_DAILY","PERIOD"]
[346220668,1734777064290,-500.0,0.00019726,2]
[346220669,1734777064300,-624.38,0.00019726,2]
[346220670,1734777064309,-150.0,0.00019726,2]
[346220671,1734777064319,-500.0,0.00019726,2]
[346220672,1734777064329,-500.0,0.00019726,2]
[346220673,1734777064339,-500.0,0.00019726,2]
[346220674,1734777064349,-500.0,0.00019726,2]
[346220675,1734777064359,-500.0,0.00019726,2]
[346220676,1734777064368,-500.0,0.00019726,2]
[346220677,1734777064378,-500.0,0.00019726,2]
[346220678,1734777064388,-500.0,0.00019726,2]
[346220679,1734777064401,-500.0,0.00019726,2]
[346220680,1734777064411,-500.0,0.00019726,2]
[346220681,1734777064421,-500.0,0.00019726,2]
[346220682,1734777064430,-500.0,0.00019726,2]
[346220683,1734777064440,-500.0,0.00019726,2]
[346220684,1734777064450,-500.0,0.00019726,2]
[346220685,1734777064460,-500.17,0.00019726,2]
[346220686,1734777064469,-462.45151183,0.00019726,2]
[346220687,1734777064802,-37.54848817,0.00019726,2]
[346220688,1734777064811,-500.0,0.00019726,2]
[346220689,1734777064822,-500.0,0.00019726,2]
[346220690,1734777064832,-628.21706531,0.00019726,2]
[346220691,1734777064841,-500.0,0.00019726,2]
[346220692,1734777064851,-500.0,0.00019726,2]
[346220693,1734777064861,-500.0,0.00019726,2]
[346220694,1734777064870,-500.0,0.00019726,2]
[346220695,1734777064880,-500.0,0.00019726,2]
[346220696,1734777064890,-500.0,0.00019726,2]
[346220697,1734777064900,-500.0,0.00019726,2]
[346220698,1734777064911,-500.0,0.00019726,2]
[346220699,1734777064921,-500.0,0.00019726,2]
[346220700,1734777064930,-500.0,0.00019726,2]
[346220701,1734777064944,-500.0,0.00019726,2]
[346220702,1734777064954,-500.0,0.00019726,2]
[346220703,1734777064964,-500.0,0.00019726,2]
[346220704,1734777064976,-500.0,0.00019726,2]
[346220705,1734777064986,-500.0,0.00019726,2]
[346220706,1734777064995,-502.96338871,0.00019726,2]
[346220707,1734777065006,-500.0,0.00019726,2]
[346220708,1734777065016,-500.0,0.00019726,2]
[346220709,1734777065026,-500.0,0.00019726,2]
[346220710,1734777065037,-500.0,0.00019726,2]
[346220711,1734777065047,-500.0,0.00019726,2]
[346220712,1734777065057,-500.0,0.00019726,2]
[346220713,1734777065066,-500.0,0.00019726,2]
[346220714,1734777065076,-500.0,0.00019726,2]
[346220715,1734777065086,-500.0,0.00019726,2]
[346220716,1734777065096,-500.0,0.00019726,2]
[346220717,1734777065106,-500.0,0.00019726,2]
[346220718,1734777065116,-500.0,0.00019726,2]
[346220719,1734777065125,-500.0,0.00019726,2]
[346220720,1734777065136,-500.0,0.00019726,2]
[346220721,1734777065145,-500.0,0.00019726,2]
[346220722,1734777065155,-282.12971224,0.00019726,2]
[346220723,1734777065164,-500.0,0.00019726,2]
[346220724,1734777065174,-500.0,0.00019726,2]
[346220725,1734777065183,-500.0,0.00019726,2]
[346220726,1734777065192,-65.39243496,0.00019726,2]
[346220727,1734777065248,-348.47443303,0.00019726,2]
[346220728,1734777065681,-500.0,0.00019178,2]
[346220729,1734777065692,-500.0,0.00019178,2]
[346220730,1734777065701,-500.0,0.00019452,2]
[346220731,1734777065711,-15.56801286,0.00019452,2]
[346220732,1734777065729,-484.43198714,0.00019452,2]
[346220733,1734777065739,-86.13313201,0.00019726,2]
[346220734,1734777065748,-500.0,0.00019726,2]
[346220735,1734777065758,-500.0,0.00019726,2]
[346220736,1734777065767,-500.0,0.00019726,2]
[346220737,1734777065777,-500.0,0.00019726,2]
[346220738,1734777065786,-500.0,0.00019726,2]
[346220739,1734777065796,-500.0,0.00019726,2]
[346220740,1734777065806,-500.0,0.00019726,2]
[346220741,1734777065815,-500.0,0.00019726,2]
[346220742,1734777065825,-719.76,0.00019726,2]
[346220743,1734777065834,-500.0,0.00019726,2]
[346220744,1734777065843,-500.0,0.00019726,2]
[346220745,1734777065852,-500.0,0.00019726,2]
[346220746,1734777065862,-500.0,0.00019726,2]
[346220747,1734777065871,-500.0,0.00019726,2]
[346220748,1734777065880,-500.0,0.00019726,2]
[346220749,1734777065890,-500.0,0.00019726,2]
[346220750,1734777065899,-500.0,0.00019726,2]
[346220751,1734777065909,-500.0,0.00019726,2]
[346220752,1734777065918,-500.0,0.00019726,2]
[346220753,1734777065927,-500.0,0.00019726,2]
[346220754,1734777065936,-500.0,0.00019726,2]
[346220755,1734777065946,-500.0,0.00019726,2]
[346220756,1734777065955,-500.0,0.00019726,2]
[346220757,1734777065964,-500.0,0.00019726,2]
[346220758,1734777065974,-773.24,0.00019726,2]
[346220759,1734777065983,-500.0,0.00019726,2]
[346220760,1734777065993,-500.0,0.00019726,2]
[346220761,1734777066002,-500.0,0.00019726,2]
[346220762,1734777066012,-500.0,0.00019726,2]
[346220763,1734777066021,-296.85,0.00019726,2]
[346220764,1734777066031,-500.0,0.00019726,2]
[346220765,1734777066040,-500.0,0.00019726,2]
[346220766,1734777066049,-500.0,0.00019726,2]
[346220767,1734777066058,-500.0,0.00019726,2]
[346220768,1734777066068,-500.0,0.00019726,2]
[346220769,1734777066145,-500.0,0.00019726,2]
[346220770,1734777066154,-500.0,0.00019726,2]
[346220771,1734777066163,-500.0,0.00019726,2]
[346220772,1734777066173,-500.0,0.00019726,2]
[346220773,1734777066182,-500.0,0.00019726,2]
[346220774,1734777066192,-500.0,0.00019726,2]
[346220775,1734777066201,-599.83,0.00019726,2]
[346220776,1734777066210,-500.0,0.00019726,2]
[346220777,1734777066220,-500.0,0.00019726,2]
[346220778,1734777066229,-589.46342108,0.00019726,2]
[346220779,1734777066238,-500.0,0.00019726,2]
[346220780,1734777066248,-500.0,0.00019726,2]
[346220781,1734777066257,-500.0,0.00019726,2]
[346220782,1734777066266,-500.0,0.00019726,2]
[346220783,1734777066275,-337.18183121,0.00019726,2]
[346220784,1734777066288,-162.81816879,0.00019726,2]
[346220785,1734777066298,-500.0,0.00019726,2]
[346220786,1734777066308,-500.0,0.00019726,2]
[346220787,1734777066317,-500.0,0.00019726,2]
[346220788,1734777066326,-194.25512897,0.00019726,2]
[346220789,1734777066337,-281.00881241,0.00019726,2]
[346220790,1734777066348,-24.73605862,0.00019726,2]
[346220791,1734777066357,-500.0,0.00019726,2]
[346220792,1734777066366,-500.0,0.00019726,2]
[346220793,1734777066376,-500.0,0.00019726,2]
[346220794,1734777066385,-432.96794138,0.00019726,2]
[346220795,1734777066401,-67.03205862,0.00019726,2]
[346220796,1734777066411,-911.48,0.00019726,2]
[346220797,1734777066420,-697.94,0.00019726,2]
[346220798,1734777066429,-500.0,0.00019726,2]
[346220799,1734777066439,-500.0,0.00019726,2]
[346220800,1734777066448,-500.0,0.00019726,2]
[346220801,1734777066457,-500.0,0.00019726,2]
[346220802,1734777066466,-500.0,0.00019726,2]
[346220803,1734777066480,-1321.76,0.00019726,2]
[346220804,1734777066489,-500.0,0.00019726,2]
[346220805,1734777066498,-500.0,0.00019726,2]
[346220806,1734777066508,-500.0,0.00019726,2]
[346220807,1734777066517,-500.0,0.00019726,2]
[346220808,1734777066526,-500.0,0.00019726,2]
[346220809,1734777066535,-500.0,0.00019726,2]
[346220810,1734777066544,-500.0,0.00019726,2]
[346220811,1734777066554,-500.0,0.00019726,2]
[346220812,1734777066563,-1984.83,0.00019726,2]
[346220813,1734777066572,-1267.09,0.00019726,2]
[346220814,1734777066581,-500.0,0.00019726,2]
[346220815,1734777066591,-666.38,0.00019726,2]
[346220816,1734777066600,-500.0,0.00019726,2]
[346220817,1734777066610,-500.0,0.00019726,2]
[346220818,1734777066619,-2007.25,0.00019726,2]
[346220819,1734777066628,-500.0,0.00019726,2]
[346220820,1734777066639,-500.0,0.00019726,2]
[346220821,1734777066649,-500.0,0.00019726,2]
[346220822,1734777066659,-500.0,0.00019726,2]
[346220823,1734777066668,-500.0,0.00019726,2]
[346220824,1734777066678,-500.0,0.00019726,2]
[346220825,1734777066687,-500.0,0.00019726,2]
[346220826,1734777066696,-500.0,0.00019726,2]
[346220827,1734777066706,-500.0,0.00019726,2]
[346220828,1734777066715,-500.0,0.00019726,2]
[346220829,1734777066726,-500.0,0.00019726,2]
[346220830,1734777066735,-500.0,0.00019726,2]
[346220831,1734777066745,-500.0,0.00019726,2]
[346220832,1734777066754,-500.0,0.00019726,2]
[346220833,1734777066764,-500.0,0.00019726,2]
[346220834,1734777066773,-500.0,0.00019726,2]
[346220835,1734777066783,-500.0,0.00019726,2]
[346220836,1734777066792,-500.0,0.00019726,2]
[346220837,1734777066801,-500.0,0.00019726,2]
[346220838,1734777066811,-500.0,0.00019726,2]
[346220839,1734777066819,-500.0,0.00019726,2]
[346220840,1734777066829,-500.0,0.00019726,2]
[346220841,1734777066838,-500.0,0.00019726,2]
[346220842,1734777066847,-788.78,0.00019726,2]
[346220843,1734777066856,-500.0,0.00019726,2]
[346220844,1734777066865,-500.0,0.00019726,2]
[346220845,1734777066875,-500.0,0.00019726,2]
[346220846,1734777066884,-500.0,0.00019726,2]
[346220847,1734777066893,-500.0,0.00019726,2]
[346220848,1734777066902,-500.0,0.00019726,2]
[346220849,1734777066911,-500.0,0.00019726,2]
[346220850,1734777066920,-500.0,0.00019726,2]
[346220851,1734777066930,-963.38,0.00019726,2]
[346220852,1734777066939,-500.0,0.00019726,2]
[346220853,1734777066948,-1448.61,0.00019726,2]
[346220854,1734777066957,-500.0,0.00019726,2]
[346220855,1734777066966,-500.0,0.00019726,2]
[346220856,1734777066978,-1405.9,0.00019726,2]
[346220857,1734777066987,-500.0,0.00019726,2]
[346220858,1734777066996,-500.0,0.00019726,2]
[346220859,1734777067006,-510.31,0.00019726,2]
[346220860,1734777067015,-500.0,0.00019726,2]
[346220861,1734777067024,-500.0,0.00019726,2]
[346220862,1734777067034,-500.0,0.00019726,2]
[346220863,1734777067043,-500.0,0.00019726,2]
[346220864,1734777067052,-500.0,0.00019726,2]
[346220865,1734777067061,-500.0,0.00019726,2]
[346220866,1734777067070,-500.0,0.00019726,2]
[346220867,1734777067079,-500.0,0.00019726,2]
[346220868,1734777067088,-500.0,0.00019726,2]
[346220869,1734777067097,-500.0,0.00019726,2]
[346220870,1734777067107,-500.0,0.00019726,2]
[346220871,1734777067115,-500.0,0.00019726,2]
[346220872,1734777067124,-500.0,0.00019726,2]
[346220873,1734777067133,-500.0,0.00019726,2]
[346220874,1734777067142,-500.0,0.00019726,2]
[346220875,1734777067151,-500.0,0.00019726,2]
[346220876,1734777067160,-500.0,0.00019726,2]
[346220877,1734777067170,-916.36,0.00019726,2]
[346220878,1734777067179,-500.0,0.00019726,2]
[346220879,1734777067189,-500.0,0.00019726,2]
[346220880,1734777067199,-500.0,0.00019726,2]
[346220881,1734777067209,-500.0,0.00019726,2]
[346220882,1734777067219,-500.0,0.00019726,2]
[346220883,1734777067234,-500.0,0.00019726,2]
[346220884,1734777067246,-500.0,0.00019726,2]
[346220885,1734777067255,-530.71,0.00019726,2]
[346220886,1734777067265,-500.0,0.00019726,2]
[346220887,1734777067274,-500.0,0.00019726,2]
[346220888,1734777067283,-500.0,0.00019726,2]
[346220889,1734777067292,-500.0,0.00019726,2]
[346220890,1734777067302,-500.0,0.00019726,2]
[346220891,1734777067311,-500.0,0.00019726,2]
[346220892,1734777067321,-500.0,0.00019726,2]
[346220893,1734777067330,-500.0,0.00019726,2]
[346220894,1734777067339,-736.36,0.00019726,2]
[346220895,1734777067349,-500.0,0.00019726,2]
[346220896,1734777067358,-500.0,0.00019726,2]
[346220897,1734777067367,-1077.59,0.00019726,2]
[346220898,1734777067381,-500.0,0.00019726,2]
[346220899,1734777067391,-702.45,0.00019726,2]
[346220900,1734777067404,-500.0,0.00019726,2]
[346220901,1734777067413,-1483.26,0.00019726,2]
[346220902,1734777067422,-500.0,0.00019726,2]
[346220903,1734777067431,-500.0,0.00019726,2]
[346220904,1734777067440,-563.16,0.00019726,2]
[346220905,1734777067449,-779.1,0.00019726,2]
[346220906,1734777067458,-500.0,0.00019726,2]
[346220907,1734777067468,-597.12,0.00019726,2]
[346220908,1734777067481,-500.0,0.00019726,2]
[346220909,1734777067491,-1225.15,0.00019726,2]
[346220910,1734777067500,-500.0,0.00019726,2]
[346220911,1734777067509,-500.0,0.00019726,2]
[346220912,1734777067518,-500.0,0.00019726,2]
[346220913,1734777067528,-500.0,0.00019726,2]
[346220914,1734777067537,-500.0,0.00019726,2]
[346220915,1734777067547,-500.0,0.00019726,2]
[346220916,1734777067556,-500.0,0.00019726,2]
[346220917,1734777067565,-500.0,0.00019726,2]
[346220918,1734777067574,-1102.19,0.00019726,2]
[346220919,1734777067584,-1685.0,0.00019726,2]
[346220920,1734777067593,-500.0,0.00019726,2]
[346220921,1734777067602,-1000.97,0.00019726,2]
[346220922,1734777067611,-500.0,0.00019726,2]
[346220923,1734777067620,-500.0,0.00019726,2]
[346220924,1734777067630,-500.0,0.00019726,2]
[346220925,1734777067640,-1676.54,0.00019726,2]
[346220926,1734777067649,-500.0,0.00019726,2]
[346220927,1734777067660,-500.0,0.00019726,2]
[346220928,1734777067669,-500.0,0.00019726,2]
[346220929,1734777067679,-500.0,0.00019726,2]
[346220930,1734777067689,-500.0,0.00019726,2]
[346220931,1734777067698,-232.96639045,0.00019726,2]
[346220932,1734777067708,-500.0,0.00019726,2]
[346220933,1734777067718,-525.95,0.00019726,2]
[346220934,1734777067730,-500.0,0.00019726,2]
[346220935,1734777067739,-500.0,0.00019726,2]
[346220936,1734777067749,-754.91,0.00019726,2]
[346220937,1734777067758,-500.0,0.00019726,2]
[346220938,1734777067767,-625.38,0.00019726,2]
[346220939,1734777067776,-500.0,0.00019726,2]
[346220940,1734777067786,-500.0,0.00019726,2]
[346220941,1734777067795,-500.0,0.00019726,2]
[346220942,1734777067805,-612.93,0.00019726,2]
[346220943,1734777067814,-873.93,0.00019726,2]
[346220944,1734777067824,-543.05,0.00019726,2]
[346220945,1734777067833,-2861.42,0.00019726,2]
[346220946,1734777067843,-500.0,0.00019726,2]
[346220947,1734777067852,-790.37,0.00019726,2]
[346220948,1734777067860,-500.0,0.00019726,2]
[346220949,1734777067870,-1284.41,0.00019726,2]
[346220950,1734777067879,-1187.0,0.00019726,2]
[346220951,1734777067888,-889.64,0.00019726,2]
[346220952,1734777067897,-1630.83,0.00019726,2]
[346220953,1734777067907,-8969.06,0.00019726,2]
[346220954,1734777067916,-500.0,0.00019726,2]
[346220955,1734777067925,-4287.79,0.00019726,2]
[346220956,1734777067934,-500.0,0.00019726,2]
[346220957,1734777067943,-1166.26,0.00019726,2]
[346220958,1734777067953,-500.0,0.00019726,2]
[346220959,1734777067962,-560.09,0.00019726,2]
[346220960,1734777067971,-500.0,0.00019726,2]
[346220961,1734777067981,-2089.53,0.00019726,2]
[346220962,1734777067990,-1669.32,0.00019726,2]
[346220963,1734777068000,-726.95,0.00019726,2]
[346220964,1734777068009,-500.0,0.00019726,2]
[346220965,1734777068018,-518.85,0.00019726,2]
[346220966,1734777068027,-809.03,0.00019726,2]
[346220967,1734777068036,-500.0,0.00019726,2]
[346220968,1734777068045,-963.08,0.00019726,2]
[346220969,1734777068053,-500.0,0.00019726,2]
[346220970,1734777068062,-628.79,0.00019726,2]
[346220971,1734777068071,-1321.33,0.00019726,2]
[346220972,1734777068080,-500.0,0.00019726,2]
[346220973,1734777068090,-500.0,0.00019726,2]
[346220974,1734777068099,-970.02,0.00019726,2]
[346220975,1734777068108,-500.0,0.00019726,2]
[346220976,1734777068117,-1657.01,0.00019726,2]
[346220977,1734777068126,-993.99,0.00019726,2]
[346220978,1734777068135,-789.71,0.00019726,2]
[346220979,1734777068144,-500.0,0.00019726,2]
[346220980,1734777068154,-500.0,0.00019726,2]
[346220981,1734777068163,-677.82,0.00019726,2]
[346220982,1734777068172,-500.0,0.00019726,2]
[346220983,1734777068182,-500.0,0.00019726,2]
[346220984,1734777068191,-500.0,0.00019726,2]
[346220985,1734777068200,-297.53239924,0.00019726,2]
[346220986,1734777068209,-500.0,0.00019726,2]
[346220987,1734777068218,-1794.31,0.00019726,2]
[346220988,1734777068229,-1681.36,0.00019726,2]
[346220989,1734777068239,-500.0,0.00019726,2]
[346220990,1734777068248,-500.0,0.00019726,2]
[346220991,1734777068257,-640.92438139,0.00019726,2]
[346220992,1734777068266,-500.0,0.00019726,2]
[346220993,1734777068276,-904.67,0.00019726,2]
[346220994,1734777068285,-796.98,0.00019726,2]
[346220995,1734777068295,-2884.22,0.00019726,2]
[346220996,1734777068304,-500.0,0.00019726,2]
[346220997,1734777068317,-506.83439959,0.00019726,2]
[346220998,1734777068327,-500.0,0.00019726,2]
[346220999,1734777068336,-5385.66,0.00019726,2]
[346221000,1734777068345,-599.84,0.00019726,2]
[346221001,1734777068355,-727.15,0.00019726,2]
[346221002,1734777068364,-500.0,0.00019726,2]
[346221003,1734777068374,-2805.25,0.00019726,2]
[346221004,1734777068383,-500.0,0.00019726,2]
[346221005,1734777068393,-500.0,0.00019726,2]
[346221006,1734777068407,-1031.18,0.00019726,2]
[346221007,1734777068417,-500.0,0.00019726,2]
[346221008,1734777068426,-569.47,0.00019726,2]
[346221009,1734777068434,-500.0,0.00019726,2]
[346221010,1734777068444,-500.0,0.00019726,2]
[346221011,1734777068453,-500.0,0.00019726,2]
[346221012,1734777068462,-338.36484346,0.00019726,2]
[346221013,1734777068475,-500.0,0.00019726,2]
[346221014,1734777068484,-500.0,0.00019726,2]
[346221015,1734777068493,-1186.64,0.00019726,2]
[346221016,1734777068502,-591.04,0.00019726,2]
[346221017,1734777068511,-500.0,0.00019726,2]
[346221018,1734777068520,-500.0,0.00019726,2]
[346221019,1734777068529,-500.0,0.00019726,2]
[346221020,1734777068539,-500.0,0.00019726,2]
[346221021,1734777068548,-1761.88,0.00019726,2]
[346221022,1734777068557,-572.4,0.00019726,2]
[346221023,1734777068566,-500.0,0.00019726,2]
[346221024,1734777068576,-500.0,0.00019726,2]
[346221025,1734777068585,-1849.13,0.00019726,2]
[346221026,1734777068595,-500.0,0.00019726,2]
[346221027,1734777068604,-709.89,0.00019726,2]
[346221028,1734777068613,-784.15,0.00019726,2]
[346221029,1734777068622,-500.0,0.00019726,2]
[346221030,1734777068631,-898.24,0.00019726,2]
[346221031,1734777068641,-500.0,0.00019726,2]
[346221032,1734777068651,-500.0,0.00019726,2]
[346221033,1734777068660,-500.0,0.00019726,2]
[346221034,1734777068669,-500.0,0.00019726,2]
[346221035,1734777068679,-500.0,0.00019726,2]
[346221036,1734777068688,-500.0,0.00019726,2]
[346221037,1734777068697,-500.0,0.00019726,2]
[346221038,1734777068707,-500.0,0.00019726,2]
[346221039,1734777068716,-500.0,0.00019726,2]
[346221040,1734777068727,-624.52,0.00019726,2]
[346221041,1734777068737,-500.0,0.00019726,2]
[346221042,1734777068746,-500.0,0.00019726,2]
[346221043,1734777068756,-500.0,0.00019726,2]
[346221044,1734777068765,-500.0,0.00019726,2]
[346221045,1734777068774,-500.0,0.00019726,2]
[346221046,1734777068784,-938.13,0.00019726,2]
[346221047,1734777068793,-1244.56,0.00019726,2]
[346221048,1734777068802,-500.0,0.00019726,2]
[346221049,1734777068811,-500.0,0.00019726,2]
[346221050,1734777068821,-500.0,0.00019726,2]
[346221051,1734777068830,-5463.73,0.00019726,2]
[346221052,1734777068839,-544.18,0.00019726,2]
[346221053,1734777068849,-500.0,0.00019726,2]
[346221054,1734777068858,-500.0,0.00019726,2]
[346221055,1734777068867,-500.0,0.00019726,2]
[346221056,1734777068876,-1317.79,0.00019726,2]
[346221057,1734777068886,-170.61,0.0001977,2]
[346221058,1734777068895,-2545.9126552,0.00019775,2]
[346221059,1734777068904,-337.43533985,0.00019809,2]
[346221060,1734777068913,-156.96726738,0.000199,2]
[346221061,1734777068930,-180.46807247,0.000199,2]
[346221062,1734777068940,-2545.9126552,0.00019907,2]
[346221063,1734777068950,-156.4518549,0.00019973,2]
[346221064,1734777068959,-506.52518326,0.00019973,2]
[346221065,1734777068969,-108.13947417,0.00019973,2]
[346221066,1734777069281,-43.01138908,0.00019973,2]
[346221067,1734777069356,-348.84913675,0.00019973,2]
[346221068,1734777069374,-500.0,0.00019973,2]
[346221069,1734777069384,-78.03030618,0.00019978,5]
[346221070,1734777069407,-500.0,0.00019978,5]
[346221071,1734777069418,-9079.55488623,0.00019978,5]
[346221072,1734777069433,-2367.87164467,0.00019978,5]
[346221073,1734777069452,-5713.6,0.00019978,5]
[346221074,1734777069463,-755.60676301,0.00019978,5]
[346221075,1734777113460,640.85,0.00017303,2]
[346221076,1734777156744,150.24,0.00010137,2]
[346221079,1734777602561,2000.0,0.00018,4]
[346221080,1734777615146,1577.27498671,0.00018,3]
[346221082,1734778012920,620.32,0.00016672,2]
[346221083,1734778016041,200.0,0.000179,3]
[346221084,1734778039609,150.0,0.0001785,2]
[346221092,1734778231731,-1280.0,0.00018605,2]
[346221093,1734778231740,-2285.59310645,0.000187,2]
[346221094,1734778231750,-553.55,0.00018759,2]
[346221095,1734778231760,-157.0,0.00018796,2]
[346221096,1734778231771,-214.68060322,0.000188,2]
[346221097,1734778231781,-620.32,0.00018936,2]
[346221098,1734778231790,-250.0,0.00018998,2]
[346221099,1734778231803,-300.80500317,0.00019061,2]
[346221100,1734778231812,-928.58621526,0.00019078,2]
[346221101,1734778231822,-14324.87231553,0.00019078,2]
[346221102,1734778231833,-387.0,0.00019078,2]
[346221103,1734778231894,-983.4825,0.00019078,2]
[346221104,1734778231954,-800.99,0.00019078,2]
[346221105,1734778231966,-859.76,0.00019078,2]
[346221106,1734778231977,-27529.50576263,0.00019078,2]
[346221139,1734778237492,-5114.16218398,0.00019078,2]
[346221140,1734778237503,-673.33422121,0.00019078,2]
[346221141,1734778237684,-17766.785694,0.00019078,2]
[346221142,1734778237698,-10555.09792265,0.00019078,2]
[346221143,1734778237707,-1500.0,0.00019078,2]
[346221144,1734778237717,-5124.0635,0.00019078,2]
[346221145,1734778237727,-308.7417,0.00019078,2]
[346221146,1734778237736,-5000.0,0.00019078,2]
[346221147,1734778237746,-2367.07178638,0.00019129,2]
[346221148,1734778237755,-928.58621524,0.00019169,2]
[346221149,1734778237765,-500.0,0.00019178,2]
[346221150,1734778237775,-500.0,0.00019178,2]
[346221151,1734778237784,-294.661851,0.00019178,2]
[346221152,1734778237794,-340.03389764,0.00019178,2]
[346221153,1734778237808,-510.196314,0.00019178,2]
[346221154,1734778237817,-152.83992,0.00019178,2]
[346221155,1734778237826,-299.116706,0.00019178,2]
[346221156,1734778237835,-500.0,0.00019178,2]
[346221157,1734778237844,-500.0,0.00019178,2]
[346221158,1734778237854,-500.0,0.00019178,2]
[346221159,1734778237863,-500.0,0.00019178,2]
[346221160,1734778237871,-500.0,0.00019178,2]
[346221161,1734778237880,-500.0,0.00019178,2]
[346221162,1734778237891,-500.0,0.00019178,2]
[346221163,1734778237900,-500.0,0.00019178,2]
[346221164,1734778237909,-500.0,0.00019178,2]
[346221165,1734778237918,-500.0,0.00019178,2]
[346221166,1734778237927,-504.13997538,0.00019178,2]
[346221167,1734778237936,-500.0,0.00019178,2]
[346221168,1734778237947,-500.0,0.00019178,2]
[346221169,1734778237955,-500.0,0.00019178,2]
[346221170,1734778237964,-500.0,0.00019178,2]
[346221171,1734778237973,-500.0,0.00019178,2]
[346221172,1734778237982,-500.0,0.00019178,2]
[346221173,1734778237992,-274.12232866,0.00019178,2]
[346221174,1734778238001,-500.0,0.00019178,2]
[346221175,1734778238011,-500.0,0.00019178,2]
[346221176,1734778238020,-500.0,0.00019178,2]
[346221177,1734778238030,-500.0,0.00019178,2]
[346221178,1734778238039,-500.0,0.00019178,2]
[346221179,1734778238049,-500.0,0.00019178,2]
[346221180,1734778238059,-500.0,0.00019178,2]
[346221181,1734778238068,-213.32788305,0.00019178,2]
[346221182,1734778238082,-286.67211695,0.00019178,2]
[346221183,1734778238092,-500.0,0.00019178,2]
[346221184,1734778238101,-500.0,0.00019178,2]
[346221185,1734778238111,-500.0,0.00019178,2]
[346221186,1734778238121,-500.0,0.00019178,2]
[346221187,1734778238130,-339.56366639,0.00019178,2]
[346221188,1734778238140,-700.0,0.00019178,2]
[346221189,1734778238150,-500.0,0.00019178,2]
[346221190,1734778238160,-500.0,0.00019178,2]
[346221191,1734778238170,-606.99071662,0.00019178,2]
[346221192,1734778238179,-500.0,0.00019178,2]
[346221193,1734778238189,-458.00134583,0.00019178,2]
[346221194,1734778238199,-500.0,0.00019178,2]
[346221195,1734778238208,-500.0,0.00019178,2]
[346221196,1734778238217,-500.0,0.00019178,2]
[346221197,1734778238226,-500.0,0.00019178,2]
[346221198,1734778238236,-500.0,0.00019178,2]
[346221199,1734778238245,-604.6559949,0.00019178,2]
[346221200,1734778238255,-500.0,0.00019178,2]
[346221201,1734778238264,-500.0,0.00019178,2]
[346221202,1734778238273,-500.0,0.00019178,2]
[346221203,1734778238282,-500.0,0.00019178,2]
[346221204,1734778238291,-500.0,0.00019178,2]
[346221205,1734778238300,-500.0,0.00019178,2]
[346221206,1734778238309,-500.0,0.00019178,2]
[346221207,1734778238319,-500.0,0.00019178,2]
[346221208,1734778238328,-500.0,0.00019178,2]
[346221209,1734778238338,-500.0,0.00019178,2]